Cogmind - Beta 15 @@@ ROGUE MODE // 2025.09.14 @ 16:04:26 Player: Dadrick Result: Escaped! Performance ------------- Evolutions (9) 4500 Regions Visited (13) 2600 Robots Destroyed (49) 245 Value Destroyed (1127) 1127 Prototype IDs (5) 100 Alien Tech Used (2) 400 Bonus (11690) 11690 TOTAL SCORE: 20662 Bonus ------- Entered DSFs 1000 Win 3000 Win Speed 7690 Cogmind --------- Core Integrity 1381/1600 Matter 290/300 Energy 346/350 System Corruption 1% Temperature Cool (8) Movement Flying (24) Location To Epsilon Eridani Parts ------- > --- POWER (2) -------- Quantum Reactor > --- PROPULSION (8) --- Cooled Cesium-ion Thruster Field Propulsion Array Improved Diametric Drive Improved Diametric Drive > --- UTILITY (13) ----- Improved Signal Interpreter Advanced Terrain Scan Processor Advanced ECM Suite Graphene Brace Improved Point Defense System Advanced Hacking Suite Advanced System Shield > --- WEAPON (2) ------- Chainsword > --- INVENTORY (5) ---- Improved Fusion Compressor Advanced EMP Blaster Sigix Broadsword Peak State ------------ > --- POWER ------------ Quantum Reactor > --- PROPULSION ------- Cooled Cesium-ion Thruster Field Propulsion Array Improved Diametric Drive Improved Diametric Drive > --- UTILITY ---------- Advanced Weight Redist. System Advanced Visual Processing Unit Advanced Sensor Array Improved Signal Interpreter Advanced Terrain Scan Processor Improved Melee Analysis Suite Advanced ECM Suite Graphene Brace Improved Point Defense System Advanced Hacking Suite Advanced System Shield > --- WEAPON ----------- Sigix Broadsword > --- INVENTORY -------- Fusion Compressor Terrabomb Enhanced Nova Cannon Advanced EMP Blaster [Rating: 130] Favorites ----------- Power Micro Nuclear Core Engine Light Deuterium Engine Power Core Micro Nuclear Core Reactor Light Antimatter Reactor Propulsion Advanced Treads Treads Advanced Treads Leg Improved Aluminum Leg Flight Unit Cooled Cesium-ion Thruster Utility Improved Signal Interpreter Device Advanced Weight Redist. System Storage Compact Battery Processor Improved Signal Interpreter Hackware Advanced Hacking Suite Protection Layered Medium Armor Plating Weapon Chainsword Energy Cannon Enhanced Nova Cannon Ballistic Gun Assault Rifle Launcher Advanced EMP Blaster Special Weapon Improved Remote Datajack Impact Weapon Maul Slashing Weapon Chainsword Build | -11 -10 -9 -8 -7 -6 -6 -5 -4 -4 -3 -2 -2 -1 ------- Run | Yrd Mat Mat Mat Fac Fac DSF Fac Fac DSF Res Res Qua Acc Slots Evolved 18 | . . 2 2 2 2 . 2 2 . 2 2 . 2 Power 1 | . . . . . . . . 1 . . . . . Propulsion 6 | . . 1 1 1 1 . 1 . . 1 . . . Utility 11 | . . 1 1 1 1 . 1 1 . 1 2 . 2 Weapon . | . . . . . . . . . . . . . . Parts Attached 73 | 4 . 3 9 8 2 5 13 2 1 6 8 7 5 Power 7 | . . . . 1 . . 1 . 1 1 1 1 1 Engine 1 | . . . . . . . . . 1 . . . . Core 3 | . . . . 1 . . 1 . . . . 1 . Reactor 3 | . . . . . . . . . . 1 1 . 1 Propulsion 25 | 2 . 2 5 1 1 2 6 1 . 1 3 . 1 Treads 8 | 2 . 1 5 . . . . . . . . . . Leg 1 | . . 1 . . . . . . . . . . . Wheel . | . . . . . . . . . . . . . . Hover . | . . . . . . . . . . . . . . Flight 16 | . . . . 1 1 2 6 1 . 1 3 . 1 Utility 30 | . . 1 3 4 1 2 5 1 . 4 3 4 2 Device 15 | . . 1 1 2 1 . 1 . . 3 2 3 1 Storage 1 | . . . . 1 . . . . . . . . . Processor 7 | . . . 1 . . . 2 1 . 1 1 1 . Hackware 3 | . . . 1 . . . 1 . . . . . 1 Protection 4 | . . . . 1 . 2 1 . . . . . . Artifact . | . . . . . . . . . . . . . . Weapon 11 | 2 . . 1 2 . 1 1 . . . 1 2 1 Energy Gun . | . . . . . . . . . . . . . . Energy Cannon 3 | . . . . . . . . . . . 1 2 . Ballistic Gun 2 | 2 . . . . . . . . . . . . . Ballistic Cannon . | . . . . . . . . . . . . . . Launcher 2 | . . . . 1 . 1 . . . . . . . Special Weapon 1 | . . . . . . . 1 . . . . . . Impact Weapon 1 | . . . 1 . . . . . . . . . . Slashing Weapon 2 | . . . . 1 . . . . . . . . 1 Piercing Weapon . | . . . . . . . . . . . . . . Special Melee Weapon . | . . . . . . . . . . . . . . Unidentified Prototypes 5 | . . . . . 1 . 1 . . 1 . . 2 Parts Lost 31 | . . . . 4 . 5 6 . . 1 10 1 4 Power 2 | . . . . . . . . . . . 2 . . Propulsion 14 | . . . . 3 . 2 4 . . 1 3 1 . Utility 15 | . . . . 1 . 3 2 . . . 5 . 4 Weapon . | . . . . . . . . . . . . . . Highest Loss Streak 8 | . . . . 2 . 5 6 . . 1 8 1 3 To Critical Strikes 1 | . . . . . . . 1 . . . . . . Average Backups 4 | . . 2 4 4 5 4 4 5 5 5 4 3 4 Power . | . . . . 1 1 1 1 1 . . . 1 1 Propulsion . | . . . . . . . . . . . . . . Utility . | . . . 1 1 1 1 1 2 2 1 . . . Weapon 2 | . . 1 2 1 3 2 2 2 2 2 2 2 2 Tool/Special . | . . . . . . . . . . . . . . Unused Backups 7 | . . . 2 2 . . . . . 1 . 1 1 Power 2 | . . . . . . . . . . . . 1 1 Propulsion . | . . . . . . . . . . . . . . Utility 1 | . . . . 1 . . . . . . . . . Weapon 2 | . . . 2 . . . . . . . . . . Tool/Special 2 | . . . . 1 . . . . . 1 . . . Average Slot Usage (%) 68 | . 57 55 68 78 66 66 62 87 90 90 77 57 61 Core 2 | . . . . 6 6 6 5 5 5 2 . 2 . Reactor 1 | . . . . . . . . . . 1 3 1 3 Treads 12 | . 28 29 34 28 13 9 . . . . . . . Flight 11 | . . . . . 4 8 16 31 31 29 26 14 15 Device 12 | . . 1 11 15 21 20 8 10 10 17 17 10 17 Processor 9 | . . . 8 7 6 6 11 19 21 14 10 16 12 Hackware 4 | . . . 2 7 6 3 2 5 5 4 4 4 7 Protection 1 | . . . . . . 1 6 5 5 4 2 . . Ballistic Gun 2 | . 28 22 4 . . . . . . . . . . Impact Weapon 1 | . . . 6 4 . . . . . . . . . Slashing Weapon 3 | . . . . 2 6 6 5 5 5 4 4 4 3 Peak Build Rating 130 | 4 4 7 26 37 40 40 85 89 93 116 129 96 130 Average Rating 56 | 3 4 5 20 32 36 36 44 87 91 103 114 81 109 On Entrance 49 | . 4 4 7 26 30 40 35 85 89 93 109 90 86 Naked Turns . | . . . . . . . . . . . . . . Heaviest Build 48 | 3 3 3 3 16 12 20 21 21 26 39 48 34 44 Greatest Support 73 | 3 3 40 3 12 12 23 52 31 53 60 73 35 44 Greatest Overweight (x) 1 | . . . . 1 . 1 . . . . . . . Average Overweight (x) . | . . . . . . . . . . . . . . Largest Inventory Capacity 5 | 5 5 5 5 5 5 5 5 5 5 5 5 5 5 Average Capacity 5 | 5 5 5 5 5 5 5 5 5 5 5 5 5 5 Most Carried 5 | . 1 4 5 5 5 5 5 5 5 5 5 5 5 Average Carried 4 | . . 2 4 4 5 4 4 5 4 4 4 4 4 Final Capacity 5 | 5 5 5 5 5 5 5 5 5 5 5 5 5 5 Final Carried 5 | . 1 4 5 5 5 5 5 5 5 5 3 5 4 Class Distribution -------------------- 49% | Mutant 28% | Sprinter 8% | Scout 5% | Hacker-Sprinter 3% | Hacker-Ninja 3% | Ninja Dominant Class ---------------- Mutant | -10/Materials Mutant | -9/Materials Mutant | -8/Materials Mutant | -7/Factory Mutant | -6/Factory Mutant | -6/DSF Sprinter | -5/Factory Sprinter | -4/Factory Sprinter | -4/DSF Sprinter | -3/Research Scout | -2/Research Sprinter | -2/Quarantine Hacker-Sprinter | -1/Access Resources | -11 -10 -9 -8 -7 -6 -6 -5 -4 -4 -3 -2 -2 -1 ----------- Run | Yrd Mat Mat Mat Fac Fac DSF Fac Fac DSF Res Res Qua Acc Matter Collected 1276 | 260 . 48 130 105 . . 267 . . 42 82 77 265 Remotely . | . . . . . . . . . . . . . . Salvage Created 1909 | 91 . 55 297 547 . 5 405 . . 42 110 . 357 Parts 84 | 3 . 10 8 20 . 4 19 . . 4 5 . 11 Haulers Intercepted 6 | . . . 3 . . . 3 . . . . . . Recyclers Shooed 1 | . . . 1 . . . . . . . . . . Parts Field Recycled . | . . . . . . . . . . . . . . Retrieved Matter . | . . . . . . . . . . . . . . Parts Self-Destructed . | . . . . . . . . . . . . . . Prevented . | . . . . . . . . . . . . . . Kills | -11 -10 -9 -8 -7 -6 -6 -5 -4 -4 -3 -2 -2 -1 ------- Run | Yrd Mat Mat Mat Fac Fac DSF Fac Fac DSF Res Res Qua Acc Combat Hostiles Destroyed 25 | . . 3 4 8 . 2 5 . . . 3 . . Guns 6 | . . 3 3 . . . . . . . . . . AOE 17 | . . . . 7 . 2 5 . . . 3 . . Classes Destroyed 10 | 2 . 1 2 4 . 1 . . . . . . . Worker 5 | . . . . 5 . . . . . . . . . Builder 1 | . . . . 1 . . . . . . . . . Tunneler 1 | 1 . . . . . . . . . . . . . Hauler 6 | . . . 3 . . . 3 . . . . . . Recycler 5 | 1 . . 1 . . . . . . . . . 3 Operator 3 | . . . . 1 . . 1 . . . 1 . . Watcher 3 | . . . . 2 . . . . . 1 . . . Swarmer 19 | . . 3 3 5 . . 5 . . . 3 . . Cutter 2 | . . . . . . 2 . . . . . . . Grunt 4 | . . . 1 3 . . . . . . . . . Best Kill Streak 8 | 2 . 3 3 8 . 2 5 . . 1 3 . 2 Combat Bots Only 5 | . . 3 3 4 . 2 5 . . . 3 . . Max Kills in Single Turn 4 | 1 . 1 1 3 . 2 4 . . 1 2 . 1 Gunslinging . | . . . . . . . . . . . . . . Exploded 4 | . . . . 2 . 2 4 . . . 2 . . Melee . | . . . . . . . . . . . . . . Uniques/NPCs Destroyed . | . . . . . . . . . . . . . . Combat | -11 -10 -9 -8 -7 -6 -6 -5 -4 -4 -3 -2 -2 -1 -------- Run | Yrd Mat Mat Mat Fac Fac DSF Fac Fac DSF Res Res Qua Acc Hostile Shots Fired 533 | . 4 21 53 92 . 48 117 . 1 9 109 21 58 Missed 263 | . 2 5 23 37 . 15 68 . 1 7 56 13 36 Hits 270 | . 2 16 30 55 . 33 49 . . 2 53 8 22 Melee 2 | . . . 1 . . 1 . . . . . . . Projectile 268 | . 2 16 29 55 . 32 49 . . 2 53 8 22 AOE 1 | . . . . . . 1 . . . . . . . Critical Strikes 8 | . . . 1 1 . . 2 . . . 3 1 . Actively Blocked 4 | . . . . . . . . . . . 3 1 . Damage Taken 4736 | . 28 125 396 707 . 369 858 . . 99 1377 255 522 Core 1191 | . 12 . 79 102 . 97 289 . . . 280 113 219 Absorbed by Shields . | . . . . . . . . . . . . . . Core Remaining (%) 89 | 100 95 100 85 85 . 88 71 . 100 100 . 72 86 Volleys Fired 38 | 5 . 7 5 8 . 2 2 . . . 7 2 . Largest 2 | 2 . 2 2 1 . 1 1 . . . 1 1 . Hottest 120 | 40 . 40 40 36 . 39 39 . . . 120 120 . Shots Fired 55 | 10 . 14 10 8 . 2 2 . . . 7 2 . Gun 34 | 10 . 14 10 . . . . . . . . . . Cannon 5 | . . . . . . . . . . . 3 2 . Launcher 16 | . . . . 8 . 2 2 . . . 4 . . Special . | . . . . . . . . . . . . . . Kinetic 34 | 10 . 14 10 . . . . . . . . . . Thermal 5 | . . . . . . . . . . . 3 2 . Explosive 8 | . . . . . . 2 2 . . . 4 . . Electromagnetic 8 | . . . . 8 . . . . . . . . . Robot Hit Streak 7 | 5 . 6 7 2 . . . . . . . . . Robot Miss Streak 6 | 3 . 2 2 1 . 3 4 . . . 6 . . Penetration Max . | . . . . . . . . . . . . . . Secondary Targets 3 | . . 2 1 . . . . . . . . . . Max Gunslinging Chain 1 | . . 1 1 . . . . . . . . . . Shots Hit Robots 50 | 5 . 7 12 12 . . 6 . . 1 3 1 3 Core Hits 51 | 3 . 3 4 12 . 2 14 . . 1 11 . 1 Critical Kills 1 | . . . . 1 . . . . . . . . . Critical Parts Destroyed 5 | . . 1 3 1 . . . . . . . . . Critical Strikes 7 | . . 1 3 2 . . 1 . . . . . . Destroy 1 | . . 1 . . . . . . . . . . . Smash 5 | . . . 3 2 . . . . . . . . . Sever 1 | . . . . . . . 1 . . . . . . Melee Attacks 80 | . . . 10 14 . 3 14 . 4 3 15 10 7 Impact 20 | . . . 10 10 . . . . . . . . . Slashing 60 | . . . . 4 . 3 14 . 4 3 15 10 7 Piercing . | . . . . . . . . . . . . . . Sneak Attacks 20 | . . . 4 6 . . 5 . . . 1 1 3 Combat Hostiles . | . . . . . . . . . . . . . . Follow-up Attacks . | . . . . . . . . . . . . . . Damage Inflicted 4171 | 57 2 80 495 1259 . 174 866 . . 48 677 76 437 Guns 213 | 57 . 80 76 . . . . . . . . . . Cannons . | . . . . . . . . . . . . . . Explosions 1637 | . . . . 595 . 174 429 . . . 439 . . Melee 2319 | . . . 419 664 . . 437 . . 48 238 76 437 Ramming 2 | . 2 . . . . . . . . . . . . Kinetic 213 | 57 . 80 76 . . . . . . . . . . Thermal 134 | . . . . 21 . . 113 . . . . . . Explosive 1094 | . . . . 165 . 174 316 . . . 439 . . Electromagnetic 409 | . . . . 409 . . . . . . . . . Impact 935 | . . . 419 516 . . . . . . . . . Slashing 1384 | . . . . 148 . . 437 . . 48 238 76 437 Piercing . | . . . . . . . . . . . . . . Highest Corruption 3 | . . . . 1 . . 2 . . . 3 3 1 Average Corruption 2 | . . . . 1 . . 1 . . . 2 3 1 Corruption Purged . | . . . . . . . . . . . . . . Corruption Blocked . | . . . . . . . . . . . . . . Effects 7 | . . . . . . . 5 . . . . 2 . Matter Fused 3 | . . . . . . . 1 . . . . 2 . Heat Flow Errors 2 | . . . . . . . 2 . . . . . . Energy Discharges 1 | . . . . . . . 1 . . . . . . Alerts 1 | . . . . . . . 1 . . . . . . Overload Shots . | . . . . . . . . . . . . . . Overflow Damage 1217 | . . . 369 401 . . 63 . . . 127 36 221 Projectiles . | . . . . . . . . . . . . . . Explosions 68 | . . . . . . . 63 . . . 5 . . Melee 1149 | . . . 369 401 . . . . . . 122 36 221 Knockbacks 4 | . . . 1 3 . . . . . . . . . Impact 4 | . . . 1 3 . . . . . . . . . Kinetic . | . . . . . . . . . . . . . . Secondary . | . . . . . . . . . . . . . . Self-Inflicted Damage 84 | . . . . 17 . 67 . . . . . . . Shots 2 | . . . . 1 . 1 . . . . . . . Rammed 3 | . 3 . . . . . . . . . . . . Targets Rammed 3 | . 3 . . . . . . . . . . . . Kicked . | . . . . . . . . . . . . . . Crushed . | . . . . . . . . . . . . . . Highest Temperature 408 | . . . . 9 . . 112 . 67 94 408 1 1 Average Temperature 99 | . . . . 9 . . 47 . 33 21 127 1 1 Received Heat Transfer 591 | . 15 . 180 96 . 84 99 . . . 45 36 36 Effects 3 | . . . . . . . . . . . 3 . . Energy Bleed 1 | . . . . . . . . . . . 1 . . Interference 1 | . . . . . . . . . . . 1 . . Short Circuit 1 | . . . . . . . . . . . 1 . . Siege Activations . | . . . . . . . . . . . . . . Martial Activations . | . . . . . . . . . . . . . . Shielding Activations . | . . . . . . . . . . . . . . Robots Disrupted . | . . . . . . . . . . . . . . Combat Hostiles . | . . . . . . . . . . . . . . Robots Corrupted 8 | . . . 4 4 . . . . . . . . . Combat Hostiles 1 | . . . 1 . . . . . . . . . . Parts Fried 14 | . . . 6 8 . . . . . . . . . Impact Corruptions 22 | . . . 10 12 . . . . . . . . . Robots Melted . | . . . . . . . . . . . . . . Combat Hostiles . | . . . . . . . . . . . . . . Parts Melted . | . . . . . . . . . . . . . . Heat Transferred 150 | . . . . 100 . . 50 . . . . . . Parts Sabotaged . | . . . . . . . . . . . . . . Parts Stolen . | . . . . . . . . . . . . . . Parts Stripped . | . . . . . . . . . . . . . . Power Chain Reactions 2 | . . . . 2 . . . . . . . . . Alert | -11 -10 -9 -8 -7 -6 -6 -5 -4 -4 -3 -2 -2 -1 ------- Run | Yrd Mat Mat Mat Fac Fac DSF Fac Fac DSF Res Res Qua Acc Maximum Alert Level 2 | . . . 1 1 . . 2 1 . . 2 1 1 Low Security (%) 57 | 100 100 100 75 19 100 100 13 . 100 100 73 37 91 Level 1 32 | . . . 24 80 . . 33 100 . . 24 62 8 Level 2 9 | . . . . . . . 53 . . . 1 . . Level 3 . | . . . . . . . . . . . . . . Level 4 . | . . . . . . . . . . . . . . Level 5 . | . . . . . . . . . . . . . . High Security . | . . . . . . . . . . . . . . Max Security . | . . . . . . . . . . . . . . Peak Influence 538 | 10 55 104 234 384 169 151 538 263 185 196 479 360 209 Initial 269 | . . 29 31 101 169 104 73 263 177 103 99 269 209 Average 207 | 3 16 79 149 281 163 121 357 261 181 128 161 242 157 Influence Increases 3195 | 10 94 117 363 503 . 87 873 . 8 125 630 331 54 Destroy 0b10 Robot/C 500 | . . 60 80 160 . 40 100 . . . 60 . . Destroy 0b10 Robot/NC 125 | 10 . . 20 50 . . 20 . . 5 5 . 15 Destroy Leader 88 | . . 10 16 24 . 10 16 . . 2 10 . . Successful Hack 219 | . 34 17 19 14 . . 35 . . 24 45 31 . Disable Machine 255 | . . . 15 75 . . 60 . . . 15 75 15 Destroy Structure 178 | . . . 3 15 . 22 42 . 8 4 60 15 9 Partial Spotted 135 | . 15 . 15 . . 15 . . . 15 30 45 . Lose Combat Pursuer 1695 | . 45 30 195 165 . . 600 . . 75 405 165 15 Influence Decreases 3092 | 10 24 111 215 381 197 95 476 285 76 132 329 460 301 Entered New Map 1362 | . . 41 45 123 177 45 68 275 76 82 79 210 141 Time Decay 1090 | 10 24 70 160 198 20 . 198 10 . 40 150 90 120 Search Patrol Dispatched 150 | . . . . . . . 150 . . . . . . Lost Part 310 | . . . . 40 . 50 60 . . 10 100 10 40 Lost Ally 30 | . . . 10 20 . . . . . . . . . Purge Threat 150 | . . . . . . . . . . . . 150 . Squads Dispatched 21 | . . . 1 8 . 1 4 . 1 2 1 2 1 Investigation 5 | . . . . 3 . . 1 . . . . 1 . Extermination 8 | . . . . 2 . . 2 . . 1 1 1 1 Reinforcement 8 | . . . 1 3 . 1 1 . 1 1 . . . Assault . | . . . . . . . . . . . . . . Garrison . | . . . . . . . . . . . . . . Intercept . | . . . . . . . . . . . . . . Searches Triggered 1 | . . . . . . . 1 . . . . . . Construction Impeded . | . . . . . . . . . . . . . . Haulers Reinforced 1 | . . . . . . . 1 . . . . . . Active Scanning Responses . | . . . . . . . . . . . . . . Cargo Convoy Interrupts . | . . . . . . . . . . . . . . Stealth | -11 -10 -9 -8 -7 -6 -6 -5 -4 -4 -3 -2 -2 -1 --------- Run | Yrd Mat Mat Mat Fac Fac DSF Fac Fac DSF Res Res Qua Acc Distress Signals 12 | . 1 1 1 . . . 4 . . 1 3 1 . Communications Jammed . | . . . . . . . . . . . . . . Distress Signals . | . . . . . . . . . . . . . . Times Spotted 213 | . 7 6 25 30 . 4 53 . 1 15 45 12 15 Peak Tracking Total 16 | . 6 4 13 10 . 3 16 . 4 9 15 10 8 Tactical Retreats 39 | . 2 2 6 5 . . 12 . . 1 5 4 2 Traps | -11 -10 -9 -8 -7 -6 -6 -5 -4 -4 -3 -2 -2 -1 ------- Run | Yrd Mat Mat Mat Fac Fac DSF Fac Fac DSF Res Res Qua Acc Traps Triggered 7 | . . . . 3 . . . . . . 2 1 1 Indirectly 1 | . . . . 1 . . . . . . . . . Trap Hack Attempts . | . . . . . . . . . . . . . . Triggered . | . . . . . . . . . . . . . . Disarmed . | . . . . . . . . . . . . . . Reprogrammed . | . . . . . . . . . . . . . . Reused . | . . . . . . . . . . . . . . Traps Extracted . | . . . . . . . . . . . . . . Installed . | . . . . . . . . . . . . . . Triggered . | . . . . . . . . . . . . . . Machines | -11 -10 -9 -8 -7 -6 -6 -5 -4 -4 -3 -2 -2 -1 ---------- Run | Yrd Mat Mat Mat Fac Fac DSF Fac Fac DSF Res Res Qua Acc Machines Disabled 17 | . . . 1 5 . . 4 . . . 1 5 1 Max in Single Turn 2 | . . . 1 2 . . 2 . . . 1 1 1 Garrison Access 1 | . . . . . . . . . . . . . 1 Machines Repaired . | . . . . . . . . . . . . . . Machines Dismantled . | . . . . . . . . . . . . . . Machines Sabotaged . | . . . . . . . . . . . . . . Overloaded Fab Kills . | . . . . . . . . . . . . . . Hacking | -11 -10 -9 -8 -7 -6 -6 -5 -4 -4 -3 -2 -2 -1 --------- Run | Yrd Mat Mat Mat Fac Fac DSF Fac Fac DSF Res Res Qua Acc Machines Accessed 36 | . 3 3 5 2 1 . 8 1 . 1 4 6 2 Terminals 34 | . 3 3 4 2 1 . 8 1 . 1 4 6 1 Fabricators . | . . . . . . . . . . . . . . Repair Stations . | . . . . . . . . . . . . . . Recycling Units 1 | . . . 1 . . . . . . . . . . Scanalyzers . | . . . . . . . . . . . . . . Garrison Access 1 | . . . . . . . . . . . . . 1 Total Hacks 73 | . 10 14 10 4 1 . 12 1 . 1 7 10 3 Successful 34 | . 7 7 5 2 1 . 2 1 . 1 3 4 1 Failed 39 | . 3 7 5 2 . . 10 . . . 4 6 2 Catastrophic 9 | . 1 . . 1 . . 3 . . . 2 2 . Database Lockouts . | . . . . . . . . . . . . . . Manual 35 | . 7 2 8 4 . . 7 . . . . 5 2 Terminals 71 | . 10 14 9 4 1 . 12 1 . 1 7 10 2 Fabricators . | . . . . . . . . . . . . . . Repair Stations . | . . . . . . . . . . . . . . Recycling Units 1 | . . . 1 . . . . . . . . . . Scanalyzers . | . . . . . . . . . . . . . . Garrison Access 1 | . . . . . . . . . . . . . 1 Terminal Hacks 20 | . 4 5 1 . 1 . 2 1 . 1 3 2 . Prototype ID Bank 1 | . . 1 . . . . . . . . . . . Open DSF 2 | . . . . . 1 . . 1 . . . . . Level Access Points 4 | . 1 1 . . . . 1 . . 1 . . . Branch Access Points 2 | . . . . . . . 1 . . . 1 . . Terminal Index 3 | . 1 1 . . . . . . . . . 1 . Unreport Threat 1 | . . . . . . . . . . . . 1 . Locate Traps 5 | . 1 1 1 . . . . . . . 2 . . Hauler Manifests 2 | . 1 1 . . . . . . . . . . . Fabricator Hacks . | . . . . . . . . . . . . . . Repair Station Hacks . | . . . . . . . . . . . . . . Recycling Unit Hacks 1 | . . . 1 . . . . . . . . . . Report Inventory 1 | . . . 1 . . . . . . . . . . Scanalyzer . | . . . . . . . . . . . . . . Garrison Access Hacks 1 | . . . . . . . . . . . . . 1 Seal Access 1 | . . . . . . . . . . . . . 1 Unauthorized Hacks 12 | . 3 2 3 2 . . . . . . . 2 . Terminals 12 | . 3 2 3 2 . . . . . . . 2 . Assimilate 1 | . . . 1 . . . . . . . . . . Botnet 11 | . 3 2 2 2 . . . . . . . 2 . Fabricators . | . . . . . . . . . . . . . . Repair Stations . | . . . . . . . . . . . . . . Recycling Units . | . . . . . . . . . . . . . . Scanalyzers . | . . . . . . . . . . . . . . Garrison Access . | . . . . . . . . . . . . . . Data Cores Recovered 2 | . . . . . . . 1 . . . 1 . . Used . | . . . . . . . . . . . . . . Hacking Detections 31 | . 3 3 4 2 1 . 7 . . 1 4 5 1 Full Trace Events 4 | . 1 1 . . . . 1 . . . . 1 . Feedback Events . | . . . . . . . . . . . . . . Feedback Blocked . | . . . . . . . . . . . . . . Robot Schematics Acquired . | . . . . . . . . . . . . . . Robots Built . | . . . . . . . . . . . . . . Authchips . | . . . . . . . . . . . . . . Time . | . . . . . . . . . . . . . . Total Robot Build Rating . | . . . . . . . . . . . . . . Part Schematics Acquired . | . . . . . . . . . . . . . . Parts Built . | . . . . . . . . . . . . . . Authchips . | . . . . . . . . . . . . . . Time . | . . . . . . . . . . . . . . Total Part Build Rating . | . . . . . . . . . . . . . . Parts Repaired . | . . . . . . . . . . . . . . Time . | . . . . . . . . . . . . . . Parts Recycled . | . . . . . . . . . . . . . . Recycled Matter . | . . . . . . . . . . . . . . Retrieved Matter . | . . . . . . . . . . . . . . Retrieved Components . | . . . . . . . . . . . . . . Parts Scanalyzed . | . . . . . . . . . . . . . . Part Schematics Acquired . | . . . . . . . . . . . . . . Parts Damaged . | . . . . . . . . . . . . . . Bothacking | -11 -10 -9 -8 -7 -6 -6 -5 -4 -4 -3 -2 -2 -1 ------------ Run | Yrd Mat Mat Mat Fac Fac DSF Fac Fac DSF Res Res Qua Acc Used RIF Installer . | . . . . . . . . . . . . . . Robots Hacked . | . . . . . . . . . . . . . . Non-combat . | . . . . . . . . . . . . . . Combat . | . . . . . . . . . . . . . . Robot Hacks Applied . | . . . . . . . . . . . . . . Relay Couplers Released . | . . . . . . . . . . . . . . Fabnet Peak Effective % . | . . . . . . . . . . . . . . Robots Rewired 1 | . . . . 1 . . . . . . . . . Allies Hacked . | . . . . . . . . . . . . . . Hacks Repelled . | . . . . . . . . . . . . . . Allies | -11 -10 -9 -8 -7 -6 -6 -5 -4 -4 -3 -2 -2 -1 -------- Run | Yrd Mat Mat Mat Fac Fac DSF Fac Fac DSF Res Res Qua Acc Total Allies 2 | . . . 1 1 . . . . . . . . . Largest Group 1 | . . . 1 1 . . . . . . . . . Highest-Rated Group 26 | . . . 26 25 . . . . . . . . . Highest-Rated Ally 26 | . . . 26 25 . . . . . . . . . Total Orders . | . . . . . . . . . . . . . . Ally Attacks 3 | . . . . 3 . . . . . . . . . Total Damage 68 | . . . . 68 . . . . . . . . . Kills 1 | . . . . 1 . . . . . . . . . Allies Corrupted . | . . . . . . . . . . . . . . Allies Melted . | . . . . . . . . . . . . . . Intel | -11 -10 -9 -8 -7 -6 -6 -5 -4 -4 -3 -2 -2 -1 ------- Run | Yrd Mat Mat Mat Fac Fac DSF Fac Fac DSF Res Res Qua Acc Active Infowar (turns) 1559 | . . . . 402 41 40 225 23 23 91 311 181 222 Optics 641 | . . . . . . . . . . 18 311 181 131 Sensors 1309 | . . . . 402 41 21 206 23 23 91 224 56 222 Jamming 71 | . . . . . 12 40 19 . . . . . . ECM 30 | . . . . . . . . . . . . 6 24 Robot Analysis Total . | . . . . . . . . . . . . . . Derelict Logs Recovered . | . . . . . . . . . . . . . . Drone Launches . | . . . . . . . . . . . . . . Drone Recoveries . | . . . . . . . . . . . . . . Exploration | -11 -10 -9 -8 -7 -6 -6 -5 -4 -4 -3 -2 -2 -1 ------------- Run | Yrd Mat Mat Mat Fac Fac DSF Fac Fac DSF Res Res Qua Acc Turns Passed 2363 | 40 77 150 321 404 41 40 419 23 23 91 311 181 242 Spaces Moved 5103 | 34 119 241 478 583 75 47 1009 69 59 314 893 508 674 Core 1557 | 34 119 239 478 583 75 29 . . . . . . . Treads 2 | . . 2 . . . . . . . . . . . Legs . | . . . . . . . . . . . . . . Wheels . | . . . . . . . . . . . . . . Hover . | . . . . . . . . . . . . . . Flight 3544 | . . . . . . 18 1009 69 59 314 893 508 674 Fastest Speed 7 | 50 50 50 50 50 50 24 22 28 12 7 7 24 24 Average Speed 32 | 50 50 50 50 52 50 43 31 28 18 20 19 24 24 Slowest Speed 160 | 50 50 160 50 100 50 100 37 28 28 22 28 25 25 Overloaded Moves 137 | . . . . . . 7 . . 27 19 84 . . Propulsion Burnouts . | . . . . . . . . . . . . . . Robots Hopped 41 | . . . . . . . 9 . . 2 20 8 2 Potential Cave-ins . | . . . . . . . . . . . . . . Cave-ins Triggered . | . . . . . . . . . . . . . . Exploration Rate (%) 29 | 3 41 27 36 25 3 48 41 3 66 12 31 52 23 Regions Visited 13 Branch Regions 1 Pre-discovered Areas . | . . . . . . . . . . . . . . Known Exits Taken 10 | . 1 1 1 1 1 . 1 1 . 1 1 1 . Unknown Exits Taken 1 | 1 . . . . . . . . . . . . . Scrap Searched . | . . . . . . . . . . . . . . Spaces Dug 43 | . . . 3 4 . 3 5 . 4 2 15 4 3 Terrain Destroyed 96 | . . . 3 12 . 26 21 . 4 2 21 4 3 Melee 40 | . . . 3 4 . 3 5 . 4 2 12 4 3 Projectile 3 | . . . . . . . . . . . 3 . . AOE 53 | . . . . 8 . 23 16 . . . 6 . . Terrain Rammed . | . . . . . . . . . . . . . . Walls Destroyed . | . . . . . . . . . . . . . . Machines Disabled . | . . . . . . . . . . . . . . Actions | -11 -10 -9 -8 -7 -6 -6 -5 -4 -4 -3 -2 -2 -1 --------- Run | Yrd Mat Mat Mat Fac Fac DSF Fac Fac DSF Res Res Qua Acc Total 5535 | 45 134 254 530 646 76 57 1069 72 64 334 975 539 740 Wait 169 | 3 12 . 16 4 . . 30 . . 6 49 5 44 Move 5011 | 33 118 240 477 582 74 46 990 69 58 309 854 492 669 Hop 38 | . . . . . . . 9 . . 2 18 7 2 Pick Up 26 | . 1 3 3 1 . . 1 . 1 2 3 7 4 Fast Attach 59 | 4 . 3 6 6 2 4 13 2 . 6 4 6 3 Attach 18 | . . . . 4 . 1 3 . 1 . 4 . 5 Detach 13 | . . . 1 5 . 1 3 . . 2 . . 1 Swap 9 | . . . 4 . . . 1 . . . 3 1 . Drop 39 | . . 1 8 3 . . 3 1 . 4 5 9 5 Fire 38 | 5 . 7 5 8 . 2 2 . . . 7 2 . Melee 80 | . . . 10 14 . 3 14 . 4 3 15 10 7 Ram . | . . . . . . . . . . . . . . Kick . | . . . . . . . . . . . . . . Crush 3 | . 3 . . . . . . . . . . . . Escape Stasis 13 | . . . . . . . . . . . 13 . . Rewire 19 | . . . . 19 . . . . . . . . . Trap . | . . . . . . . . . . . . . . Miscellaneous . | . . . . . . . . . . . . . . Route ------- -11/Scrapyard -10/Materials (discovered 4 exits: *Mat x3 / [*Min]) -9/Materials (discovered 3 exits: *Mat x3) -8/Materials -7/Factory (discovered 2 exits: *Fac / *Low) -6/Factory -6/DSF -5/Factory (discovered 6 exits: *Fac x4 / Upp x2) -4/Factory -4/DSF -3/Research (discovered 3 exits: *Res x3) -2/Research (discovered 2 exits: *Qua x2) -2/Quarantine -1/Access To Epsilon Eridani History --------- Turn | Location | Event 11 | -11/Scrapyard | Discovered new exit (range 14) 41 | -11/Scrapyard | Entered Materials 92 | -10/Materials | Discovered new exit (range 6) 103 | -10/Materials | Identified exit to Materials 118 | -10/Materials | Entered another Materials area 118 | -9/Materials | Evolved 2 slots: Propulsion x1, Utility x1 181 | -9/Materials | Identified exit to Materials 268 | -9/Materials | Entered another Materials area 268 | -8/Materials | Evolved 2 slots: Propulsion x1, Utility x1 313 | -8/Materials | Build established: Mutant 583 | -8/Materials | Discovered new exit (range 15) 588 | -8/Materials | Identified exit to Factory 589 | -8/Materials | Entered Factory 589 | -7/Factory | Evolved 2 slots: Propulsion x1, Utility x1 835 | -7/Factory | Discovered new exit (range 3) 836 | -7/Factory | Identified exit to Lower Caves 986 | -7/Factory | Discovered new exit (range 6) 991 | -7/Factory | Identified exit to Factory 993 | -7/Factory | Entered another Factory area 993 | -6/Factory | Evolved 2 slots: Propulsion x1, Utility x1 1015 | -6/Factory | Identified exit to DSF 1034 | -6/Factory | Entered DSF 1055 | -6/DSF | Additional patrols routed to DSF 1066 | -6/DSF | Discovered new exit (range 16) 1074 | -6/DSF | Identified exit to Factory 1074 | -6/DSF | Entered Factory 1074 | -5/Factory | Evolved 2 slots: Propulsion x1, Utility x1 1124 | -5/Factory | Lost 6 parts (2n4u) 1307 | -5/Factory | Identified exit to Upper Caves 1374 | -5/Factory | Search patrols dispatched 1465 | -5/Factory | Identified exit to Factory 1493 | -5/Factory | Entered another Factory area 1493 | -4/Factory | Evolved 2 slots: Power x1, Utility x1 1516 | -4/Factory | Identified exit to DSF 1516 | -4/Factory | Entered DSF 1533 | -4/DSF | Additional patrols routed to DSF 1538 | -4/DSF | Discovered new exit (range 11) 1539 | -4/DSF | Identified exit to Research 1539 | -4/DSF | Entered Research 1539 | -3/Research | Evolved 2 slots: Propulsion x1, Utility x1 1587 | -3/Research | Build established: Sprinter 1587 | -3/Research | Identified exit to Research 1630 | -3/Research | Entered another Research area 1630 | -2/Research | Evolved 2 slots: Utility x2 1738 | -2/Research | Spotted B-90 Cyclops 1886 | -2/Research | Identified exit to Quarantine 1900 | -2/Research | Lost 8 parts (2p2n4u) 1935 | -2/Research | Spotted B-90 Cyclops 1941 | -2/Research | Entered Quarantine 1999 | -2/Quarantine | Found Alien Slashing Weapon 2092 | -2/Quarantine | Discovered new exit (range 19) 2115 | -2/Quarantine | Found Alien Artifact 2122 | -2/Quarantine | Identified exit to Access 2122 | -2/Quarantine | Entered Access 2122 | -1/Access | Evolved 2 slots: Utility x2 2150 | -1/Access | Identified Sigix Broadsword 2190 | -1/Access | Spotted B-99 Colossus 2253 | -1/Access | Spotted B-99 Colossus 2285 | -1/Access | Lost 3 parts (3u) 2353 | -1/Access | Spotted B-99 Colossus 2354 | -1/Access | Spotted B-99 Colossus 2355 | -1/Access | Identified Terrabomb 2355 | -1/Access | Used Terrabomb 2361 | -1/Access | Discovered new exit (range 4) 2364 | -1/Access | Identified exit to Surface 2364 | *** | Escaped! Last Messages --------------- 02255_ U-05 Engineer destroyed. 02300_ Connecting with Garrison Access... >>Seal Access door sealed. 02338_ C-30 ARC bursts open, deploying its payload. 02338_ B-74 Champion unfolds itself. 02338_ G-73 Enforcer unfolds itself. 02344_ Adv. Sensor Array destroyed. 02353_ Slug penetrates Wall. 02354_ Penetrated by Slug. 02354_ Slug penetrates Wall. 02355_ Identified Terrabomb. 02355_ Terrabomb activated. 02357_ Terminal disabled. 02357_ Slug penetrates Terminal. 02357_ Penetrated by Slug. 02357_ Slug penetrates TF Node. 02361_ Main Access Shell breached. 02361_ EXIT=FOUND 02364_ EXIT=IDENTIFIED: SURFACE Map ----- +----------------------------------------------------+ | ?????????????????????????????????????????????????? | | ?????????????????????????????????????????????????? | | ?????????????????????????????????????????????????? | | ?????????????????????????????????????????????????? | | ?????????????????????????????????????????????????? | | ?????? " ??????" " ??????????????????????????? | | ???? " "?? " " ????????????????????????? | | ? " ! " """" " ?????????????????????? | | " " " " " ????????????????????? | | """"""" " " ?????????????????????? | | "" " " " ??????????????????????? | | ! """"""""""+""""""""""""#+####?????????????????? | | ??????????????????? | | " ???????????????????? | | """""""""""""""""""""""""#????????????????????? | | """""""""" #????????????????????? | | ! " #????????????????????? | | " #????????????????????? | | " #????????????????????? | | " ##???????????????????? | | """"""""""""""""""""#"??????????????????? | | """" " """" "??????????????????? | | """" " "??" "??????????????????? | | """""""""" "??" """""" "??????????????????? | | "??" " "?????????????????????? | | "??" "@ "?????????????????????? | | "??" " "" "?????????????????????? | | "??" " "?????????????????????? | | """ """ "??" """"""?????????????????????? | | " " " "??" ??????????????????????????? | | " " " "??" ??????????????????????????? | | """ " """""""""??"""??????????????????????????? | | " ? ??????????????????????????? | | " ??????????????????????????? | | " ? ??????????????????????????? | | #####""" ? ##?????????????????????????? | | ??????? ??"#???????????????????????????? | | ????????????????????#????????????????????????????? | | ?????????????????????????????????????????????????? | | ???##########????????????????????????????????????? | | ?? #????????????????????????????????????? | | ?? #????????????????????????????????????? | | ? #????????????????????????????????????? | | ? #????????????????????????????????????? | | #????????????????????????????????????? | | #????????????????????????????????????? | | #????????????????????????????????????? | | #????????????????????????????????????? | | #????????????????????????????????????? | | #????????????????????????????????????? | +----------------------------------------------------+ Best States ------------- Heat Dissipation 52 Energy Generation 37 Energy Capacity 350 Matter Stores 300 Matter Capacity 300 Sight Range 20 Robot Scan Range 16 Terrain Scan Density 210 ECM Strength 2 Jamming Range 12 Power Amplification 30 Additional Mass Support 9 Armor Coverage 300 Evasion (%) 76 Targeting Accuracy 6 Melee Accuracy 6 Core Analysis 6 Recoil Reduction 4 Offensive Hacking 14 Defensive Hacking 14 Item Schematics ----------------- None Robot Schematics ------------------ None Fabricated ------------ Nothing Repaired ---------- Nothing Alien Tech Used ----------------- Sigix Broadsword Terrabomb Achievements -------------- None Challenges ------------ None Game ------ Seed ExpertTransmissionRipteeth Manual? 0 Play Time 01:08:39 Cumulative 353.9 hours Start 2025.09.14 @ 14:54:07 End 2025.09.14 @ 16:04:26 Sessions 1 Manual Loads 0 Difficulty Rogue Special Mode None Game No. 142 Rogue 121 Adventurer 21 Explorer 0 Win Type 0 Total 15 Types 10/0/4/1/0/0/0/0/0/0 Lore% 54 Gallery% 71 Achievement% 66 Wizard Run 0 Options --------- Layout 1 ASCII 0 Keyboard 0 Movement Mouse Keybinds 0 Fullscreen 2 Font 32/SmallcapsGlow Map View 77x35 Zoom Use 0% Tactical HUD 1 Map Filters NONE Filters NONE Steam 1 RUN: 5794d69d-089b-445f-b0ab-1bd0efd1d33d